Cogmind - Beta 17 @@@ ROGUE MODE // 2026.07.23 @ 18:05:35 Player: V1-Dll Result: Destroyed by G-34 Mercenary with Small Laser Performance ------------- Evolutions (0) 0 Regions Visited (1) 200 Robots Destroyed (19) 95 Value Destroyed (468) 468 Prototype IDs (0) 0 Alien Tech Used (0) 0 Bonus (0) 0 TOTAL SCORE: 763 Bonus ------- None Cogmind --------- Core Integrity 0/250 Matter 300/300 Energy 94/100 System Corruption 0% Temperature Cool (48) Movement Core (50) Location -10/Materials Parts ------- > --- POWER (1) -------- (None) > --- PROPULSION (2) --- (None) > --- UTILITY (2) ------ (None) > --- WEAPON (2) ------- Medium Laser > --- INVENTORY (5) ---- Grenade Launcher Hammer Peak State ------------ > --- POWER ------------ (None) > --- PROPULSION ------- (None) > --- UTILITY ---------- (None) > --- WEAPON ----------- Assault Rifle Light Assault Rifle > --- INVENTORY -------- (None) [Rating: 2] Favorites ----------- Power None Propulsion None Utility None Weapon Medium Laser Energy Gun Medium Laser Ballistic Gun Light Assault Rifle Launcher Grenade Launcher Impact Weapon Hammer Build | -11 -10 ------- Run | Yrd Mat Slots Evolved . | . . Power . | . . Propulsion . | . . Utility . | . . Weapon . | . . Parts Attached 6 | 2 4 Power . | . . Engine . | . . Core . | . . Reactor . | . . Propulsion . | . . Treads . | . . Leg . | . . Wheel . | . . Hover . | . . Flight . | . . Utility . | . . Device . | . . Storage . | . . Processor . | . . Hackware . | . . Protection . | . . Artifact . | . . Weapon 6 | 2 4 Energy Gun 1 | . 1 Energy Cannon . | . . Ballistic Gun 3 | 2 1 Ballistic Cannon . | . . Launcher 1 | . 1 Special Weapon . | . . Impact Weapon 1 | . 1 Slashing Weapon . | . . Piercing Weapon . | . . Special Melee Weapon . | . . Unidentified Prototypes . | . . Parts Lost 1 | . 1 Power . | . . Propulsion . | . . Utility . | . . Weapon 1 | . 1 Highest Loss Streak 1 | . 1 To Critical Strikes . | . . Average Backups 2 | . 2 Power . | . . Propulsion . | . . Utility . | . . Weapon 2 | . 2 Tool/Special . | . . Unused Backups . | . . Power . | . . Propulsion . | . . Utility . | . . Weapon . | . . Tool/Special . | . . Average Slot Usage (%) 16 | . 16 Energy Gun 6 | . 6 Ballistic Gun 6 | . 6 Launcher 1 | . 1 Impact Weapon 2 | . 2 Peak Build Rating 2 | 2 2 Average Rating 1 | 1 1 On Entrance 1 | . 2 Avg Prop Armor Cover (%) . | . . Naked Turns 13 | . 13 Heaviest Build 3 | 3 3 Greatest Support 3 | 3 3 Greatest Overweight (x) . | . . Average Overweight (x) . | . . Largest Inventory Capacity 5 | 5 5 Average Capacity 5 | 5 5 Most Carried 4 | 1 4 Average Carried 2 | . 2 Final Capacity 5 | 5 5 Final Carried 2 | 1 2 Class Distribution -------------------- 100% | Mutant Dominant Class ---------------- Mutant | -10/Materials Resources | -11 -10 ----------- Run | Yrd Mat Matter Collected 437 | 191 246 Remotely . | . . Salvage Created 514 | . 514 Parts 22 | . 22 Haulers Intercepted 1 | . 1 Recyclers Shooed 1 | . 1 Parts Field Recycled . | . . Retrieved Matter . | . . Parts Self-Destructed . | . . Prevented . | . . Parts Restored . | . . Kills | -11 -10 ------- Run | Yrd Mat Combat Hostiles Destroyed 10 | . 10 Melee 1 | . 1 Guns 3 | . 3 AOE 5 | . 5 Classes Destroyed 8 | . 8 Worker 2 | . 2 Builder 1 | . 1 Hauler 1 | . 1 Recycler 1 | . 1 Mechanic 1 | . 1 Operator 1 | . 1 Watcher 2 | . 2 Grunt 10 | . 10 Best Kill Streak 10 | . 10 Combat Bots Only 5 | . 5 Max Kills in Single Turn 3 | . 3 Gunslinging . | . . Exploded 1 | . 1 Melee 1 | . 1 Uniques/NPCs Destroyed . | . . Combat | -11 -10 -------- Run | Yrd Mat Hostile Shots Fired 57 | . 57 Missed 17 | . 17 Hits 40 | . 40 Projectile 40 | . 40 Damage Taken 512 | . 512 Core 251 | . 251 Absorbed by Shields . | . . Core Remaining (%) 100 | 100 . Volleys Fired 47 | . 47 Largest 2 | . 2 Hottest 50 | . 50 Shots Fired 65 | . 65 Gun 55 | . 55 Cannon . | . . Launcher 10 | . 10 Special . | . . Kinetic 42 | . 42 Thermal 13 | . 13 Explosive 10 | . 10 Electromagnetic . | . . Robot Hit Streak 9 | . 9 Robot Miss Streak 5 | . 5 Penetration Max . | . . Secondary Targets 1 | . 1 Max Gunslinging Chain 1 | . 1 Shots Hit Robots 57 | . 57 Core Hits 42 | . 42 Critical Kills 2 | . 2 Critical Parts Destroyed 1 | . 1 Critical Strikes 4 | . 4 Burn 1 | . 1 Smash 3 | . 3 Melee Attacks 16 | . 16 Impact 16 | . 16 Slashing . | . . Piercing . | . . Sneak Attacks 1 | . 1 Combat Hostiles . | . . Follow-up Attacks . | . . Damage Inflicted 1682 | . 1682 Guns 382 | . 382 Cannons . | . . Explosions 892 | . 892 Melee 408 | . 408 Ramming . | . . Kinetic 244 | . 244 Thermal 138 | . 138 Explosive 892 | . 892 Electromagnetic . | . . Impact 408 | . 408 Slashing . | . . Piercing . | . . Highest Corruption . | . . Average Corruption . | . . Corruption Purged . | . . Corruption Blocked . | . . Overload Shots . | . . Overflow Damage 68 | . 68 Projectiles . | . . Explosions 10 | . 10 Melee 58 | . 58 Knockbacks . | . . Impact . | . . Kinetic . | . . Secondary . | . . Self-Inflicted Damage . | . . Shots . | . . Rammed . | . . Targets Rammed . | . . Kicked . | . . Crushed . | . . Highest Temperature 42 | . 42 Average Temperature 12 | . 12 Received Heat Transfer 285 | . 285 Siege Activations . | . . Martial Activations . | . . Shielding Activations . | . . Robots Disrupted . | . . Combat Hostiles . | . . Robots Corrupted 2 | . 2 Combat Hostiles 1 | . 1 Parts Fried . | . . Impact Corruptions 4 | . 4 Robots Melted . | . . Combat Hostiles . | . . Parts Melted 1 | . 1 Heat Transferred 481 | . 481 Parts Sabotaged . | . . Parts Stolen . | . . Parts Stripped . | . . Power Chain Reactions . | . . Alert | -11 -10 ------- Run | Yrd Mat Maximum Alert Level . | . . Low Security (%) 100 | 100 100 Level 1 . | . . Level 2 . | . . Level 3 . | . . Level 4 . | . . Level 5 . | . . High Security . | . . Max Security . | . . Peak Influence 197 | . 197 Initial . | . . Average 121 | . 126 Influence Increases 344 | . 344 Destroy 0b10 Robot/C 200 | . 200 Destroy 0b10 Robot/NC 45 | . 45 Destroy Leader 56 | . 56 Successful Hack 5 | . 5 Destroy Structure 23 | . 23 Partial Spotted 15 | . 15 Influence Decreases 238 | . 238 Time Decay 228 | . 228 Lost Part 10 | . 10 Squads Dispatched 2 | . 2 Investigation . | . . Extermination . | . . Reinforcement 2 | . 2 Assault . | . . Garrison . | . . Intercept . | . . Searches Triggered . | . . Construction Impeded . | . . Haulers Reinforced . | . . Active Scanning Responses . | . . Cargo Convoy Interrupts . | . . Stealth | -11 -10 --------- Run | Yrd Mat Distress Signals 3 | . 3 Communications Jammed . | . . Distress Signals . | . . Times Spotted 23 | . 23 Peak Tracking Total 4 | . 4 Tactical Retreats . | . . Traps | -11 -10 ------- Run | Yrd Mat Traps Triggered 1 | . 1 Indirectly . | . . Trap Hack Attempts . | . . Triggered . | . . Disarmed . | . . Reprogrammed . | . . Reused . | . . Traps Extracted . | . . Installed . | . . Triggered . | . . Machines | -11 -10 ---------- Run | Yrd Mat Machines Disabled . | . . Max in Single Turn . | . . Machines Repaired . | . . Machines Dismantled . | . . Machines Sabotaged . | . . Overloaded Fab Kills . | . . Hacking | -11 -10 --------- Run | Yrd Mat Machines Accessed 3 | . 3 Terminals 3 | . 3 Fabricators . | . . Repair Stations . | . . Recycling Units . | . . Scanalyzers . | . . Garrison Access . | . . Total Hacks 10 | . 10 Successful 4 | . 4 Failed 6 | . 6 Catastrophic . | . . Database Lockouts . | . . Manual 10 | . 10 Terminals 10 | . 10 Fabricators . | . . Repair Stations . | . . Recycling Units . | . . Scanalyzers . | . . Garrison Access . | . . Terminal Hacks . | . . Fabricator Hacks . | . . Repair Station Hacks . | . . Recycling Unit Hacks . | . . Scanalyzer . | . . Garrison Access Hacks . | . . Unauthorized Hacks 4 | . 4 Terminals 4 | . 4 Botnet 3 | . 3 Operators 1 | . 1 Fabricators . | . . Repair Stations . | . . Recycling Units . | . . Scanalyzers . | . . Garrison Access . | . . Data Cores Recovered . | . . Used . | . . Hacking Detections 2 | . 2 Full Trace Events . | . . Feedback Events . | . . Feedback Blocked . | . . Robot Schematics Acquired . | . . Robots Built . | . . Authchips . | . . Time . | . . Total Robot Build Rating . | . . Part Schematics Acquired . | . . Parts Built . | . . Authchips . | . . Time . | . . Total Part Build Rating . | . . Part Studies Acquired . | . . Parts Repaired . | . . Time . | . . Parts Recycled . | . . Recycled Matter . | . . Retrieved Matter . | . . Retrieved Components . | . . Parts Scanalyzed . | . . Part Schematics Acquired . | . . Parts Damaged . | . . Bothacking | -11 -10 ------------ Run | Yrd Mat Used RIF Installer . | . . Robots Hacked . | . . Non-combat . | . . Combat . | . . Robot Hacks Applied . | . . Relay Couplers Released . | . . Fabnet Peak Effective % . | . . Robots Rewired . | . . Allies Hacked . | . . Hacks Repelled . | . . Allies | -11 -10 -------- Run | Yrd Mat Total Allies . | . . Largest Group . | . . Highest-Rated Group . | . . Highest-Rated Ally . | . . Total Orders . | . . Ally Attacks . | . . Total Damage . | . . Kills . | . . Allies Corrupted . | . . Allies Melted . | . . Intel | -11 -10 ------- Run | Yrd Mat Active Infowar (turns) . | . . Robot Analysis Total . | . . Derelict Logs Recovered . | . . Drone Launches . | . . Drone Recoveries . | . . Exploration | -11 -10 ------------- Run | Yrd Mat Turns Passed 534 | 22 512 Spaces Moved 665 | 36 629 Core 665 | 36 629 Treads . | . . Legs . | . . Wheels . | . . Hover . | . . Flight . | . . Fastest Speed 50 | 50 50 Average Speed 50 | 50 50 Slowest Speed 50 | 50 50 Overloaded Moves . | . . Propulsion Burnouts . | . . Robots Hopped . | . . Potential Cave-ins . | . . Cave-ins Triggered . | . . Exploration Rate (%) 33 | 3 63 Regions Visited 1 Branch Regions . Pre-discovered Areas . | . . Known Exits Taken . | . . Unknown Exits Taken 1 | 1 . Scrap Searched . | . . Spaces Dug . | . . Terrain Destroyed 22 | . 22 Melee . | . . Projectile . | . . AOE 22 | . 22 Terrain Rammed . | . . Walls Destroyed . | . . Machines Disabled . | . . Actions | -11 -10 --------- Run | Yrd Mat Total 777 | 38 739 Wait 38 | . 38 Move 664 | 35 629 Hop . | . . Pick Up 3 | 1 2 Fast Attach 3 | 2 1 Attach 2 | . 2 Detach 1 | . 1 Swap 2 | . 2 Drop 1 | . 1 Fire 47 | . 47 Melee 16 | . 16 Ram . | . . Kick . | . . Crush . | . . Escape Stasis . | . . Rewire . | . . Trap . | . . Miscellaneous . | . . Route ------- -11/Scrapyard -10/Materials (discovered 3 exits: [*Mat x2] / [*Min]) History --------- Turn | Location | Event 3 | -11/Scrapyard | Discovered new exit (range 15) 23 | -11/Scrapyard | Entered Materials 36 | -10/Materials | Discovered new exit (range 16) 197 | -10/Materials | Core integrity fell below 50% 271 | -10/Materials | Discovered new exit (range 10) 303 | -10/Materials | Build established: Mutant 510 | -10/Materials | Discovered new exit (range 15) 529 | -10/Materials | Core integrity fell below 20% 535 | -10/Materials | Destroyed by G-34 Mercenary with Small Laser Last Messages --------------- Operator tracking enabled and active. 00373_ Connecting with Terminal... 00375_ Acquired 1 matter. 00424_ Connecting with Terminal... >>Trojan(Botnet) Trojan loaded successfully. Testing... Terminal linked with 2 systems. Awaiting botnet instructions. 00481_ K-01 Serf cleans the Neutrino Reactor. 00510_ EXIT=FOUND 00511_ T-07 Excavator is excavating. 00517_ K-01 Serf cleans the Machine. 00519_ T-07 Excavator is excavating. 00520_ W-16 Scout sends out distress signal. 00532_ G-47 Trooper destroyed. 00534_ U-05 Engineer lays Concrete. 00534_ G-34 Mercenary suffers critical hit (Burn). 00535_ U-05 Engineer lays Concrete. Map ----- +----------------------------------------------------+ | | | | | | | | | | | ?????????????????????????????????????????????????? | | ?????????????????????????????????????????????????? | | ?????????????????????????????????????????????????? | | ?????????????????????????????????????????????????? | | ?????????????????????????????????????????????????? | | ?????????????????????????????????????????????????? | | ?????????????????????????????????????????????????? | | ?????????????????????####????????????????????????? | | ?????????????????????# ????????????????????????? | | ?????????????????????# < ????????????????????????? | | ?????????????????????# ????????????????????????? | | ?????????????????????u ????????????????????????? | | ?????????????????????# ????????????????????????? | | ?????????????????????# ????????????????????????? | | ????????????????????## ##??????????????????????? | | ?????????????######## #??????????????????????? | | ???????????? "" #???????????????????? | | ????????????? T ###################?# | | ???????????????o? = ?? | | ????????????????????? *g! w ?? | | ????????????????????????#@ ?? | | ????????????????????????# #########????# #??# | | ????????????????????????# #????????????# #??# | | ????????????????????????# #????????????# #??# | | ????????????????????????# #????????????# #??# | | ????????????????????????# #????????????# #?## | | ????????????????????????# #????????????# #?# | | ????????????????????????# #????????????# #?# | | ????????????????????????# ###?########## #?# | | ????????????????????????# #?# # #?# | | ????????????????????????# #?# !! # #?? | | ????????????????????????# #?# !! # #####+# | | ????????????????????????# #?# !! # # T | | ?????????????????????#### ### + # " | | ?????????????????????#""" ## # # " | | ?????????????????????#" ## # # * " | | ?????????????????????#"! ## # # | | ?????????????????????#"" < ## # # | | ?????????????????????#"| ########### #####+# | | ?????????????????????#" #?????????# | | ?????????????????????#""" #?????????# [ | | ?????????????????????#### ##?????????# """ | | ????????????????????????# #??????????# """ | | ????????????????????????# #??????????# """ | | ??????????????########### #??????????# """ | +----------------------------------------------------+ Best States ------------- Heat Dissipation 25 Energy Generation 5 Energy Capacity 100 Matter Stores 300 Matter Capacity 300 Sight Range 16 Terrain Scan Density 10 Evasion (%) 50 Item Schematics ----------------- None Robot Schematics ------------------ None Fabricated ------------ Nothing Repaired ---------- Nothing Studied --------- None Alien Tech Used ----------------- None Achievements -------------- None Challenges ------------ None Game ------ Seed MetafieldTowerTurretformer Manual? 0 Play Time 00:08:13 Cumulative 339.4 hours Start 2026.07.23 @ 17:58:42 End 2026.07.23 @ 18:05:35 Sessions 1 Manual Loads 0 Difficulty Rogue Special Mode None Game No. 194 Rogue 120 Adventurer 74 Explorer 0 Win Type - Total 17 Types 14/0/0/3/0/0/0/0/0/0 Lore% 72 Gallery% 66 Achievement% 51 Wizard Run 0 Options --------- Layout 2 ASCII 0 Keyboard 0 Movement Mouse Keybinds 0 Fullscreen 1 Font 32/SmallcapsGlow Map View 50x44 Zoom Use 0% Tactical HUD 1 Map Filters NONE Filters NONE Steam 1 RUN: a08481fd-d409-49a0-91f4-186fcf159141